Cogmind - Beta 12 @@@ ROGUE MODE // 2023.11.30 @ 14:17:40 // Winter2019/RPGLIKE Player: drchaos820 Result: Self-destructed Performance ------------- Evolutions (3) 1500 Regions Visited (6) 1200 Robots Destroyed (98) 490 Value Destroyed (2500) 2500 Prototype IDs (0) 0 Alien Tech Used (0) 0 Bonus (392) 392 TOTAL SCORE: 6082 Bonus ------- High Alert Combat Kills 192 Entered Garrisons 200 Cogmind --------- Core Integrity 385/1500 Matter 300/300 Energy 240/240 System Corruption 0% Temperature Cool (0) Movement Core (100) Ox1 Location -7/Garrison Parts ------- > --- POWER (1) -------- Nuclear Core > --- PROPULSION (1) --- (None) > --- UTILITY (4) ------ Improved Heat Sink Targeting Computer > --- WEAPON (2) ------- Gauss Rifle Improved Light Cannon > --- INVENTORY (1) ---- High-powered Shotgun Peak State ------------ > --- POWER ------------ Nuclear Core > --- PROPULSION ------- Wheel > --- UTILITY ---------- Improved Heat Sink Structural Scanner Improved Terrain Scanner Improved Light Armor Plating > --- WEAPON ----------- Improved Light Cannon Improved Light Cannon > --- INVENTORY -------- (None) [Rating: 18] Favorites ----------- Power Light Ion Engine Engine Light Ion Engine Power Core Nuclear Core Propulsion Compact Wheel Wheel Compact Wheel Utility Improved Terrain Scanner Device Improved Terrain Scanner Processor Targeting Computer Protection Improved Light Armor Plating Weapon Improved Light Cannon Energy Gun Medium Laser Ballistic Gun Shotgun Ballistic Cannon Improved Light Cannon Build | -11 -10 -9 -9 -8 -7 -7 ------- Run | Jun Mat Mat Sto Mat Fac Gar Slots Evolved 4 | 2 1 . . . 1 . Power . | . . . . . . . Propulsion . | . . . . . . . Utility 3 | 1 1 . . . 1 . Weapon 1 | 1 . . . . . . Parts Attached 23 | 7 1 . 7 3 . 5 Power 3 | 1 . . 1 1 . . Engine 2 | 1 . . 1 . . . Core 1 | . . . . 1 . . Reactor . | . . . . . . . Propulsion 3 | 1 . . 1 1 . . Treads . | . . . . . . . Leg . | . . . . . . . Wheel 3 | 1 . . 1 1 . . Hover . | . . . . . . . Flight . | . . . . . . . Utility 7 | 2 1 . 1 1 . 2 Device 4 | 2 1 . . . . 1 Storage . | . . . . . . . Processor 1 | . . . . . . 1 Hackware . | . . . . . . . Protection 2 | . . . 1 1 . . Artifact . | . . . . . . . Weapon 10 | 3 . . 4 . . 3 Energy Gun 5 | 3 . . 2 . . . Energy Cannon . | . . . . . . . Ballistic Gun 2 | . . . . . . 2 Ballistic Cannon 3 | . . . 2 . . 1 Launcher . | . . . . . . . Special Weapon . | . . . . . . . Impact Weapon . | . . . . . . . Slashing Weapon . | . . . . . . . Piercing Weapon . | . . . . . . . Special Melee Weapon . | . . . . . . . Unidentified Prototypes . | . . . . . . . Parts Lost 5 | . . . 1 . . 4 Power . | . . . . . . . Propulsion 1 | . . . . . . 1 Utility 4 | . . . 1 . . 3 Weapon . | . . . . . . . Highest Loss Streak 2 | . . . 1 . . 2 To Critical Strikes . | . . . . . . . Average Slot Usage (%) 94 | . 99 100 98 100 87 78 Engine 11 | . 15 14 14 12 . . Core 3 | . . . . 2 12 12 Wheel 13 | . 15 14 14 14 12 10 Device 33 | . 33 42 39 28 25 24 Protection 3 | . . . 1 14 12 5 Energy Gun 14 | . 32 28 12 . . . Ballistic Gun 1 | . . . . . . 8 Ballistic Cannon 12 | . . . 15 28 25 15 Naked Turns . | . . . . . . . Heaviest Build 21 | 8 9 9 20 20 20 21 Greatest Support 21 | 16 16 16 21 21 15 15 Greatest Overweight (x) 1 | . . . . 1 1 1 Average Overweight (x) . | . . . . . 1 1 Largest Inventory Capacity 1 | . . . 1 1 1 1 Average Capacity . | . . . . 1 1 1 Most Carried 1 | . . . 1 1 1 1 Average Carried . | . . . . . 1 . Final Capacity 1 | . . . 1 1 1 1 Final Carried 1 | . . . . 1 1 1 Class Distribution -------------------- 55% | Skirmisher 25% | Scavenger-Skirmisher 19% | Mutant Dominant Class ---------------- Skirmisher | -10/Materials Skirmisher | -9/Materials Scavenger-Skirmisher | -9/Storage Skirmisher | -8/Materials Mutant | -7/Factory Mutant | -7/Garrison Resources | -11 -10 -9 -9 -8 -7 -7 ----------- Run | Jun Mat Mat Sto Mat Fac Gar Matter Collected 1533 | 262 18 . 569 159 . 525 Remotely . | . . . . . . . Salvage Created 3034 | 104 865 351 925 304 . 485 Parts 200 | 8 59 15 77 27 . 14 Haulers Intercepted 2 | . 1 . . 1 . . Recyclers Shooed 9 | . 4 . 5 . . . Parts Field Recycled . | . . . . . . . Retrieved Matter . | . . . . . . . Parts Self-Destructed . | . . . . . . . Prevented . | . . . . . . . Kills | -11 -10 -9 -9 -8 -7 -7 ------- Run | Jun Mat Mat Sto Mat Fac Gar Combat Hostiles Destroyed 58 | . 14 6 22 7 . 9 Guns 26 | . 13 6 4 . . 3 Cannons 31 | . . . 18 7 . 6 Classes Destroyed 14 | 2 7 1 1 1 . 2 Worker 11 | . 6 . 4 1 . . Builder 12 | . 4 . 6 2 . . Tunneler 2 | 2 . . . . . . Hauler 2 | . 1 . . 1 . . Recycler 7 | 1 2 . 4 . . . Mechanic 1 | . . . 1 . . . Operator 2 | . 1 . . 1 . . Watcher 3 | . 2 . 1 . . . Swarmer 13 | . 6 . 7 . . . Grunt 29 | . 8 4 7 4 . 6 Duelist 1 | . . . . 1 . . Sentry 12 | . . 2 8 2 . . Specialist 1 | . . . . . . 1 Hunter 2 | . . . . . . 2 Best Kill Streak 11 | 2 6 3 11 7 . 6 Combat Bots Only 8 | . 4 3 8 3 . 6 Max Kills in Single Turn 2 | 1 1 1 2 1 . 1 Gunslinging . | . . . . . . . Exploded . | . . . . . . . Melee . | . . . . . . . Uniques/NPCs Destroyed . | . . . . . . . Combat | -11 -10 -9 -9 -8 -7 -7 -------- Run | Jun Mat Mat Sto Mat Fac Gar Damage Taken 2698 | . 375 295 482 917 . 629 Core 2084 | . 320 248 390 630 . 496 Absorbed by Shields . | . . . . . . . Redirected to Core 1519 | . 165 151 288 542 . 373 Core Remaining (%) 77 | 100 79 . 85 44 . . Volleys Fired 299 | 18 84 31 88 28 . 50 Largest 2 | 2 2 2 2 2 . 2 Hottest 96 | 90 90 90 96 78 . 78 Shots Fired 593 | 35 164 62 176 56 . 100 Gun 352 | 35 164 62 50 . . 41 Cannon 241 | . . . 126 56 . 59 Launcher . | . . . . . . . Special . | . . . . . . . Kinetic 282 | . . . 126 56 . 100 Thermal 306 | 30 164 62 50 . . . Explosive . | . . . . . . . Electromagnetic 5 | 5 . . . . . . Robot Hit Streak 21 | 5 10 10 9 13 . 21 Robot Miss Streak 5 | 2 4 3 5 2 . 3 Penetration Max . | . . . . . . . Secondary Targets 2 | . 1 1 . . . . Max Gunslinging Chain 1 | . 1 1 . . . . Shots Hit Robots 373 | 23 97 42 100 43 . 68 Core Hits 158 | 4 45 14 42 16 . 37 Critical Kills . | . . . . . . . Critical Parts Destroyed . | . . . . . . . Critical Strikes 24 | 5 5 1 11 2 . . Burn 14 | 5 5 1 3 . . . Blast 10 | . . . 8 2 . . Melee Attacks . | . . . . . . . Impact . | . . . . . . . Slashing . | . . . . . . . Piercing . | . . . . . . . Sneak Attacks . | . . . . . . . Combat Hostiles . | . . . . . . . Follow-up Attacks . | . . . . . . . Damage Inflicted 6672 | 280 1180 491 2091 1077 . 1553 Guns 3036 | 280 1180 491 380 . . 705 Cannons 3636 | . . . 1711 1077 . 848 Explosions . | . . . . . . . Melee . | . . . . . . . Ramming . | . . . . . . . Kinetic 4341 | . . . 1711 1077 . 1553 Thermal 2280 | 229 1180 491 380 . . . Explosive . | . . . . . . . Electromagnetic 51 | 51 . . . . . . Impact . | . . . . . . . Slashing . | . . . . . . . Piercing . | . . . . . . . Highest Corruption . | . . . . . . . Average Corruption . | . . . . . . . Corruption Purged . | . . . . . . . Corruption Blocked . | . . . . . . . Overload Shots . | . . . . . . . Overflow Damage 159 | . . . 110 29 . 20 Projectiles 159 | . . . 110 29 . 20 Explosions . | . . . . . . . Melee . | . . . . . . . Knockbacks 30 | . . . 11 10 . 9 Impact . | . . . . . . . Kinetic 29 | . . . 10 10 . 9 Secondary 1 | . . . 1 . . . Self-Inflicted Damage 93 | . . . . . . 93 Shots 1 | . . . . . . 1 Rammed . | . . . . . . . Targets Rammed . | . . . . . . . Kicked . | . . . . . . . Crushed . | . . . . . . . Highest Temperature 449 | 160 180 219 258 449 . 11 Average Temperature 62 | 77 57 83 40 105 . 10 Received Heat Transfer 1065 | . 141 147 120 477 . 180 Effects 5 | . . . 2 3 . . Shutdowns 1 | . . . . 1 . . Energy Bleed 1 | . . . . 1 . . Interference 3 | . . . 2 1 . . Siege Activations . | . . . . . . . Robots Corrupted . | . . . . . . . Combat Hostiles . | . . . . . . . Parts Fried . | . . . . . . . Impact Corruptions 1 | . . . 1 . . . Robots Melted 1 | . 1 . . . . . Combat Hostiles 1 | . 1 . . . . . Parts Melted 11 | 2 5 . 4 . . . Heat Transferred 7024 | 965 3445 1400 1214 . . . Parts Sabotaged . | . . . . . . . Parts Stolen . | . . . . . . . Parts Stripped . | . . . . . . . Power Chain Reactions . | . . . . . . . Missiles Intercepted . | . . . . . . . Alert | -11 -10 -9 -9 -8 -7 -7 ------- Run | Jun Mat Mat Sto Mat Fac Gar Peak Influence 656 | 15 376 326 656 524 238 524 Initial 276 | . 9 146 137 276 238 166 Average 284 | 7 230 240 347 362 238 311 Maximum Alert Level 2 | . 1 1 2 2 1 2 Low Security (%) 26 | 100 35 17 28 . . 15 Level 1 53 | . 64 82 29 72 100 63 Level 2 19 | . . . 42 27 . 21 Level 3 . | . . . . . . . Level 4 . | . . . . . . . Level 5 . | . . . . . . . High Security . | . . . . . . . Max Security . | . . . . . . . Squads Dispatched 8 | . 3 1 2 2 . . Investigation 1 | . . . 1 . . . Extermination . | . . . . . . . Reinforcement 6 | . 3 1 1 1 . . Assault . | . . . . . . . Garrison 1 | . . . . 1 . . Intercept . | . . . . . . . Searches Triggered . | . . . . . . . Construction Impeded 1 | . . . 1 . . . Haulers Reinforced . | . . . . . . . Active Scanning Responses . | . . . . . . . Cargo Convoy Interrupts . | . . . . . . . Stealth | -11 -10 -9 -9 -8 -7 -7 --------- Run | Jun Mat Mat Sto Mat Fac Gar Distress Signals 6 | . 2 1 3 . . . Communications Jammed . | . . . . . . . Distress Signals . | . . . . . . . Times Spotted 83 | . 25 9 27 12 . 10 Peak Tracking Total 6 | . 5 5 4 6 . 6 Tactical Retreats 4 | . 2 . 1 . . 1 Traps | -11 -10 -9 -9 -8 -7 -7 ------- Run | Jun Mat Mat Sto Mat Fac Gar Traps Triggered . | . . . . . . . Indirectly . | . . . . . . . Trap Hack Attempts . | . . . . . . . Triggered . | . . . . . . . Disarmed . | . . . . . . . Reprogrammed . | . . . . . . . Reused . | . . . . . . . Traps Extracted . | . . . . . . . Installed . | . . . . . . . Triggered . | . . . . . . . Machines | -11 -10 -9 -9 -8 -7 -7 ---------- Run | Jun Mat Mat Sto Mat Fac Gar Machines Disabled 7 | . . . . . . 7 Max in Single Turn 2 | . . . . . . 2 Phase Generator 1 | . . . . . . 1 Machines Repaired . | . . . . . . . Machines Sabotaged . | . . . . . . . Overloaded Fab Kills . | . . . . . . . Hacking | -11 -10 -9 -9 -8 -7 -7 --------- Run | Jun Mat Mat Sto Mat Fac Gar Machines Accessed 6 | . 1 . 4 . 1 . Terminals 5 | . 1 . 4 . . . Fabricators . | . . . . . . . Repair Stations . | . . . . . . . Recycling Units . | . . . . . . . Scanalyzers . | . . . . . . . Garrison Access 1 | . . . . . 1 . Total Hacks 11 | . 2 . 8 . 1 . Successful 2 | . 1 . . . 1 . Failed 9 | . 1 . 8 . . . Catastrophic 5 | . 1 . 4 . . . Database Lockouts . | . . . . . . . Manual 10 | . 2 . 8 . . . Terminals 10 | . 2 . 8 . . . Fabricators . | . . . . . . . Repair Stations . | . . . . . . . Recycling Units . | . . . . . . . Scanalyzers . | . . . . . . . Garrison Access 1 | . . . . . 1 . Terminal Hacks 1 | . 1 . . . . . Level Access Points 1 | . 1 . . . . . Fabricator Hacks . | . . . . . . . Repair Station Hacks . | . . . . . . . Recycling Unit Hacks . | . . . . . . . Scanalyzer . | . . . . . . . Garrison Access Hacks 1 | . . . . . 1 . Unlock Access 1 | . . . . . 1 . Unauthorized Hacks . | . . . . . . . Terminals . | . . . . . . . Fabricators . | . . . . . . . Repair Stations . | . . . . . . . Recycling Units . | . . . . . . . Scanalyzers . | . . . . . . . Garrison Access . | . . . . . . . Data Cores Recovered . | . . . . . . . Used . | . . . . . . . Hacking Detections 4 | . . . 4 . . . Full Trace Events 1 | . . . 1 . . . Feedback Events . | . . . . . . . Feedback Blocked . | . . . . . . . Robot Schematics Acquired . | . . . . . . . Robots Built . | . . . . . . . Authchips . | . . . . . . . Time . | . . . . . . . Total Robot Build Rating . | . . . . . . . Part Schematics Acquired . | . . . . . . . Parts Built . | . . . . . . . Authchips . | . . . . . . . Time . | . . . . . . . Total Part Build Rating . | . . . . . . . Parts Repaired . | . . . . . . . Time . | . . . . . . . Parts Recycled . | . . . . . . . Recycled Matter . | . . . . . . . Retrieved Matter . | . . . . . . . Retrieved Components . | . . . . . . . Parts Scanalyzed . | . . . . . . . Part Schematics Acquired . | . . . . . . . Parts Damaged . | . . . . . . . Bothacking | -11 -10 -9 -9 -8 -7 -7 ------------ Run | Jun Mat Mat Sto Mat Fac Gar Used RIF Installer . | . . . . . . . Robots Hacked . | . . . . . . . Non-combat . | . . . . . . . Combat . | . . . . . . . Robot Hacks Applied . | . . . . . . . Relay Couplers Released . | . . . . . . . Fabnet Peak Effective % . | . . . . . . . Robots Rewired . | . . . . . . . Allies Hacked . | . . . . . . . Hacks Repelled . | . . . . . . . Allies | -11 -10 -9 -9 -8 -7 -7 -------- Run | Jun Mat Mat Sto Mat Fac Gar Total Allies . | . . . . . . . Largest Group . | . . . . . . . Highest-Rated Group . | . . . . . . . Highest-Rated Ally . | . . . . . . . Total Orders . | . . . . . . . Ally Attacks . | . . . . . . . Total Damage . | . . . . . . . Kills . | . . . . . . . Allies Corrupted . | . . . . . . . Allies Melted . | . . . . . . . Intel | -11 -10 -9 -9 -8 -7 -7 ------- Run | Jun Mat Mat Sto Mat Fac Gar Robot Analysis Total . | . . . . . . . Derelict Logs Recovered . | . . . . . . . Drone Launches . | . . . . . . . Drone Recoveries . | . . . . . . . Exploration | -11 -10 -9 -9 -8 -7 -7 ------------- Run | Jun Mat Mat Sto Mat Fac Gar Turns Passed 2466 | 126 612 175 733 275 85 460 Spaces Moved 1238 | 63 299 77 306 186 17 290 Core 53 | 1 . . . . . 52 Treads . | . . . . . . . Legs . | . . . . . . . Wheels 1185 | 62 299 77 306 186 17 238 Hover . | . . . . . . . Flight . | . . . . . . . Fastest Speed 50 | 50 100 100 100 95 95 95 Average Speed 98 | 99 100 100 100 99 95 95 Slowest Speed 100 | 100 100 100 100 100 95 100 Overloaded Moves . | . . . . . . . Propulsion Burnouts . | . . . . . . . Robots Hopped . | . . . . . . . Cave-ins Triggered . | . . . . . . . Exploration Rate (%) 26 | 5 59 16 60 16 1 25 Regions Visited 6 Branch Regions 1 Pre-discovered Areas . | . . . . . . . Known Exits Taken 2 | . 1 . . . 1 . Unknown Exits Taken 4 | 1 . 1 1 1 . . Scrap Searched . | . . . . . . . Spaces Dug . | . . . . . . . Terrain Destroyed 74 | . . . 9 10 . 55 Melee . | . . . . . . . Projectile 19 | . . . 9 10 . . AOE 55 | . . . . . . 55 Terrain Rammed . | . . . . . . . Walls Destroyed . | . . . . . . . Machines Disabled . | . . . . . . . Actions | -11 -10 -9 -9 -8 -7 -7 --------- Run | Jun Mat Mat Sto Mat Fac Gar Total 1888 | 88 447 113 560 222 85 373 Wait 268 | . 57 . 130 2 69 10 Move 1232 | 62 298 76 305 185 16 290 Hop . | . . . . . . . Pick Up 4 | . . . 1 1 . 2 Fast Attach 13 | 7 1 . 2 . . 3 Attach 2 | . . . 1 . . 1 Detach . | . . . . . . . Swap 8 | . . . 4 3 . 1 Drop 14 | 1 . . 6 3 . 4 Fire 299 | 18 84 31 88 28 . 50 Melee . | . . . . . . . Ram . | . . . . . . . Kick . | . . . . . . . Crush . | . . . . . . . Escape Stasis . | . . . . . . . Rewire 2 | . . . . . . 2 Trap . | . . . . . . . Miscellaneous 46 | . 7 6 23 . . 10 Route ------- -11/Junkyard -10/Materials (discovered 4 exits: *Mat x3 / [*Min]) -9/Materials (discovered 2 exits: *Sto x2) -9/Storage (discovered 2 exits: [*Mat] / [Rec]) -8/Materials -7/Factory -7/Garrison History --------- Turn | Location | Event 1 | -11/Junkyard | Upgraded with Utility slot (x1) 1 | -11/Junkyard | Upgraded with Weapon slot (x1) 8 | -11/Junkyard | Discovered new exit (range 15) 127 | -11/Junkyard | Entered Materials 211 | -10/Materials | Identified exit to Materials 305 | -10/Materials | Build established: Skirmisher 459 | -10/Materials | Discovered new exit (range 14) 670 | -10/Materials | Reached level 2 673 | -10/Materials | Upgraded with Utility slot (x1) 739 | -10/Materials | Entered another Materials area 739 | -9/Materials | Discovered new exit (range 11) 741 | -9/Materials | Reached level 3 910 | -9/Materials | Discovered new exit (range 4) 914 | -9/Materials | Entered Storage 916 | -9/Storage | Reached level 4 1263 | -9/Storage | Discovered new exit (range 10) 1272 | -9/Storage | Reached level 5 1311 | -9/Storage | Destroyed 8 combat bots 1392 | -9/Storage | Build established: Scavenger-Skirmisher 1500 | -9/Storage | Reached level 6 1627 | -9/Storage | Discovered new exit (range 18) 1647 | -9/Storage | Entered Materials 1649 | -8/Materials | Reached level 7 1800 | -8/Materials | Discovered new exit (range 15) 1899 | -8/Materials | Garrison activated, responded to threat 1916 | -8/Materials | Core integrity fell below 50% 1922 | -8/Materials | Entered Factory 1923 | -7/Factory | Core integrity fell below 50% 1924 | -7/Factory | Reached level 8 1924 | -7/Factory | Upgraded with Utility slot (x1) 2006 | -7/Factory | Identified exit to Garrison 2007 | -7/Factory | Entered Garrison 2007 | -7/Garrison | Reached level 9 2050 | -7/Garrison | Triggered checkpoint 2229 | -7/Garrison | Phase Generator disabled 2369 | -7/Garrison | Reached level 10 2400 | -7/Garrison | Build established: Mutant 2467 | -7/Garrison | Self-destructed Last Messages --------------- 02389_ Slug penetrates Wall. 02389_ Structural Scanner destroyed. 02391_ Wall collapses. 02392_ Penetrated by Slug. 02392_ Wheel destroyed. 02393_ H-55 Commando destroyed. 02395_ Penetrated by Slug. 02396_ Acquired 46 matter. 02401_ Penetrated by Slug. 02401_ H-55 Commando destroyed. 02404_ Acquired 12 matter. 02406_ Acquired 4 matter. 02411_ Dropped Shotgun. 02413_ Acquired 10 matter. 02415_ Acquired Targeting Computer. 02418_ G-47 Trooper knocked back. 02420_ Critical hit (Burn: +37). 02421_ G-47 Trooper destroyed. 02425_ Acquired 26 matter. 02433_ Used Protomatter to restore core integrity (+78, depleted) Map ----- +----------------------------------------------------+ | ?????????????????????????????????????????????????? | | ?????????????????????????????????????????????????? | | ?????????????????????????????????????????????????? | | ?????????????????????????????????????????????????? | | ?????????????????????????????????????????????????? | | ?????????????????????????????????????????????????? | | ?????????????????????????????????????????????????? | | ?????????????????????????????????????????????????? | | ?????????????????????????????????????????????????? | | ?????????????????????????????????????????????????? | | ?????????????????????????????????????????????????? | | ????????######???????????????????????????????????? | | ????????#######??????????????????????????????????? | | ????????## *################???????????????????? | | ????????## [[#####################??????????????? | | ????????####=%[ =% %*= ^^ ?????? | | ??????????##% #"%############## ?????? | | ??????????## =#%############### #???????????????? | | ??????????#####*##????????????# #???????????????? | | ?##############%##????????????# #???????????????? | | ?############## ##???????????? #???????????????? | | ?#" " " " ### ##????????????# #???????????????? | | ##" " " " ### ##????????????# #???????????????? | | ##""" " " ###%############### ##??????????????? | | ## ##%############### ## ###### #????? | | ##""" # ##% + @ #????? | | ##&& # ##### #????? | | ##&&" ^ # ##### ##### ##########???????? | | ##""" # ^^ ##### ##### ###??????????????? | | ## ^ ##### ###!! #???# #????????????????? | | ##"" " """" ###### ###!! #???# #????????????????? | | ##"&&" " " ##### #######???# ########## #?????? | | ?#"&&" ##?## ##????????# " #?????? | | ?#############?## ##????????##### ###### #?????? | | ?#############?## ##????????????# #????????????? | | ??????????????#### ##????????????# #????????????? | | ??????????????#### ##????????????# ###??????????? | | ??????????????## ##????????????# #??????????? | | ?????????????### ##????????????# = #??????????? | | ???????????##### ####??????????# #??????????? | | ??????????##### # #########?????# ###??????????? | | ??????????### ############# #????????????? | | ??????###### + ] #????????????? | | ?????## ## ###### ####????????????? | | ????##% #####"""""#??????????????? | | ????## # ##?#######??????????????? | | ????### ## ##??????????????????????? | | ????###### ##??????????????????????? | | ?????###### ##??????????????????????? | | ????????## ##??????????????????????? | +----------------------------------------------------+ Best States ------------- Heat Dissipation 45 Energy Generation 14 Energy Capacity 265 Matter Stores 300 Matter Capacity 300 Sight Range 20 Robot Scan Range 8 Terrain Scan Range 16 Terrain Scan Density 310 Armor Coverage 150 Resistance: KI 10 Evasion (%) 41 Targeting Accuracy 5 Offensive Hacking 10 Item Schematics ----------------- None Robot Schematics ------------------ None Fabricated ------------ Nothing Alien Tech Used ----------------- None Achievements -------------- None Challenges ------------ None RPGLIKE | -11 -10 -9 -9 -8 -7 -7 --------- Run | Jun Mat Mat Sto Mat Fac Gar Levels Raised 9 | . 1 1 3 1 1 2 XP Earned 17079 | 3000 1845 2250 3872 2455 1500 2157 XP Spent 15900 | 2900 1500 1440 4650 1480 1530 2400 Upgrades 52 | 12 5 12 12 3 5 3 Utility Slot 3 | 1 1 . . . 1 . Weapon Slot 1 | 1 . . . . . . Core Integrity 18 | 4 . 12 . 2 . . Heat Dissipation 1 | . 1 . . . . . Mass Support 1 | . . . 1 . . . Inventory Capacity 1 | . . . 1 . . . Sight Range 4 | 4 . . . . . . Sensor Range 4 | . 1 . . . 3 . Terrain Scan Density 3 | 2 . . . . 1 . Ranged Accuracy 6 | . . . 3 . . 3 Hack Attack % 2 | . 2 . . . . . KI Resistance % 2 | . . . 2 . . . KI Damage % 4 | . . . 3 1 . . EX Damage % 2 | . . . 2 . . . Protomatter Created 446 | . 96 43 187 50 . 70 Integrity Restored 969 | . 156 129 474 . . 210 Core 969 | . 156 129 474 . . 210 Protomatter Decayed 73 | . 44 . 29 . . . Game ------ Seed FactorySigixChainsword Manual? 0 Play Time 00:20:55 Cumulative 27.9 hours Start 2023.11.30 @ 13:56:48 End 2023.11.30 @ 14:17:40 Sessions 1 Manual Loads 0 Difficulty Rogue Special Mode Winter2019/RPGLIKE Game No. 42 Rogue 19 Adventurer 23 Explorer 0 Win Type - Total 1 Types 1/0/0/0/0/0/0/0/0 Lore% 46 Gallery% 42 Achievement% 41 Wizard Run 0 Options --------- ASCII 0 Keyboard 0 Movement Arrows Keybinds 0 Fullscreen 2 Font 18/Terminus Map View 76x50 Tactical HUD 1 Map Filters NONE Filters NONE Steam 1 RUN: a52c6eb4-8987-4d61-9887-d26d61505a80